{"text_format":"1","workbook":"xlsx","n_sheets":11,"sheets":["BDD2","BDD","Données","PRODUCTION","MAGASIN","LABORATOIRE","ENVIRONNEMENT","MAINTENANCE","CHARGEMENT","TREMIS-DOSEURS-TAMIS","MIXER-EXTRUDEUSE-ENSACHEUSE"],"not_rendered":{"charts":0,"images":0,"macros":1,"external_links":0,"defined_names":16,"comments":0,"pivot_tables":0},"unopened":[],"bounds":{"document_bytes":16777216,"sheet_cells":100000,"rows_first":2000,"rows_last":500,"rows_between":2000,"halvings":0,"cell_chars":16384,"cell_head_chars":4096},"cells_cut":0,"cells_raw":0,"read":"whole","date_system":"1900"}

{"sheet":"BDD2","index":0,"n_rows":6,"n_cols":4,"rows_kept":6,"cut":false,"hidden":false,"merged":[]}
["Semaine","Zone","Auditeur","Réalisation"]
["Semaine 28","ZONE PRODUCTION","B","2016-07-19"]
["Semaine 29","ZONE PRODUCTION","C","2016-07-19"]
["Semaine 29","ZONE MAGASIN","C","2016-07-19"]
["Semaine 30","ZONE PRODUCTION","B","2016-07-19"]
["Semaine 30","ZONE MAGASIN","C","2016-07-19"]

{"sheet":"BDD","index":1,"n_rows":8,"n_cols":6,"rows_kept":8,"cut":false,"hidden":false,"merged":[]}
["Semaine 29","Feuille","Question","Semaine 28","Semaine 29","Semaine 30"]
["ZONE PRODUCTION","PRODUCTION","Fait-il beau ?","OUI","OUI","OUI"]
["ZONE PRODUCTION","PRODUCTION","Pleut-il ?","OUI","NON","NON"]
["ZONE PRODUCTION","PRODUCTION","Fait-il chaud ?","OUI","N.A","N.A"]
["ZONE PRODUCTION","PRODUCTION","Ah! Que oui","OUI"]
["ZONE MAGASIN","MAGASIN","Pleut-il ?",null,"N.A","NON"]
["ZONE MAGASIN","MAGASIN","Fait-il froid ?",null,"N.A","NON"]
["ZONE MAGASIN","MAGASIN","Tornade ?",null,"N.A","NON"]

{"sheet":"Données","index":2,"n_rows":9,"n_cols":7,"rows_kept":9,"cut":false,"hidden":false,"merged":[[0,5,0,6]]}
[null,"Date",null,"Auditeurs",null,"Contact"]
[null,{"$f":"\"Semaine \"&WEEKNUM(TODAY())-2","v":"Semaine 28"},null,"A",null,"Production","aa"]
[null,{"$f":"\"Semaine \"&WEEKNUM(TODAY())-1","v":"Semaine 29"},null,"B",null,"Magasin","bb"]
[null,{"$f":"\"Semaine \"&WEEKNUM(TODAY())","v":"Semaine 30"},null,"C",null,"Laboratoire","cc"]
[null,{"$f":"\"Semaine \"&WEEKNUM(TODAY())+1","v":"Semaine 31"},null,"D",null,"Environnement","dd"]
[null,{"$f":"\"Semaine \"&WEEKNUM(TODAY())+2","v":"Semaine 32"},null,null,null,"Maintenance","ee"]
[null,null,null,null,null,"TREMIS-DOSEURS-TAMIS","ff"]
[null,null,null,null,null,"MIXER-EXTRUDEUSE-ENSACHEUSE","gg"]
[null,null,null,null,null,"CHARGEMENT","hh"]

{"sheet":"PRODUCTION","index":3,"n_rows":43,"n_cols":8,"rows_kept":43,"cut":false,"hidden":false,"merged":[[42,0,42,2],[43,0,43,7],[11,0,16,0],[3,0,10,0],[17,0,20,0],[39,0,39,2],[0,0,0,3],[0,4,0,5],[1,0,1,3],[1,4,1,5],[40,0,40,7]]}
["LAYERED AUDIT\nSite de Dudelange",null,null,null,"Date : "]
["ZONE PRODUCTION",null,null,null,"Auditeur : "]
[null,null,null,"OUI","NON","N.A","R","Commentaires / Actions / N° Work Order"]
["Sécurité","S1","Fait-il beau ?",null,null,null,{"$f":"IF(D4<>\"\",$D$3,IF(E4<>\"\",$E$3,IF(F4<>\"\",$F$3,\"Vide\")))","v":"Vide"}]
[null,"S2","Pleut-il ?",null,null,null,{"$f":"IF(D5<>\"\",$D$3,IF(E5<>\"\",$E$3,IF(F5<>\"\",$F$3,\"Vide\")))","v":"Vide"}]
[null,"S3","Fait-il chaud ?",null,null,null,"Vide"]
[null,"S4",null,null,null,null,"Vide"]
[null,"S5",null,null,null,null,"Vide"]
[null,"S6",null,null,null,null,"Vide"]
[null,"S7",null,null,null,null,"Vide"]
[null,"S8",null,null,null,null,"Vide"]
["Qualité","Q1",null,null,null,null,"Vide"]
[null,"Q2",null,null,null,null,"Vide"]
[null,"Q3",null,null,null,null,"Vide"]
[null,"Q4",null,null,null,null,"Vide"]
[null,"Q5",null,null,null,null,"Vide"]
[null,"Q6",null,null,null,null,"Vide"]
["Environnement","E1",null,null,null,null,"Vide"]
[null,"E2",null,null,null,null,"Vide"]
[null,"E3",null,null,null,null,"Vide"]
[null,"E4",null,null,null,null,"Vide"]
[null,null,null,null,null,null,{"$f":"IF(D22<>\"\",$D$3,IF(E22<>\"\",$E$3,IF(F22<>\"\",$F$3,\"Vide\")))","v":"Vide"}]
[null,null,null,null,null,null,"Vide"]
[null,null,null,null,null,null,"Vide"]
[null,null,null,null,null,null,"Vide"]
[null,null,null,null,null,null,"Vide"]
[null,null,null,null,null,null,"Vide"]
[null,null,null,null,null,null,"Vide"]
[null,null,null,null,null,null,"Vide"]
[null,null,null,null,null,null,"Vide"]
[null,null,null,null,null,null,"Vide"]
[null,null,null,null,null,null,"Vide"]
[null,null,null,null,null,null,"Vide"]
[null,null,null,null,null,null,"Vide"]
[null,null,null,null,null,null,"Vide"]
[null,null,null,null,null,null,"Vide"]
[null,null,null,null,null,null,"Vide"]
[null,null,null,null,null,null,"Vide"]
[]
["Comportements dangereux identifiés lors de l'audit :"]
[]
[]
["Commentaires supplémentaires :"]

{"sheet":"MAGASIN","index":4,"n_rows":43,"n_cols":8,"rows_kept":43,"cut":false,"hidden":false,"merged":[[40,0,40,7],[42,0,42,2],[43,0,43,7],[3,0,13,0],[14,0,19,0],[20,0,25,0],[26,0,28,0],[0,0,0,3],[0,4,0,5],[1,0,1,3],[1,4,1,5],[39,0,39,2]]}
["LAYERED AUDIT\nSite de Dudelange",null,null,null,"Date :"]
["ZONE MAGASIN",null,null,null,"Auditeur : "]
[null,null,null,"Oui","NON","N.A","R","Commentaires / Actions / N° Work Order"]
["Sécurité","S1","Pleut-il ?",null,null,null,{"$f":"IF(D4<>\"\",$D$3,IF(E4<>\"\",$E$3,IF(F4<>\"\",$F$3,\"Vide\")))","v":"Vide"}]
[null,"S2","Fait-il froid ?",null,null,null,"Vide"]
[null,"S3","Tornade ?",null,null,null,"Vide"]
[null,"S4",null,null,null,null,"Vide"]
[null,"S5",null,null,null,null,"Vide"]
[null,"S6",null,null,null,null,"Vide"]
[null,"S7",null,null,null,null,"Vide"]
[null,"S8",null,null,null,null,"Vide"]
[null,"S9",null,null,null,null,"Vide"]
[null,"S10",null,null,null,null,"Vide"]
[null,"S10",null,null,null,null,"Vide"]
["Qualité","Q1",null,null,null,null,"Vide"]
[null,"Q2",null,null,null,null,"Vide"]
[null,"Q3",null,null,null,null,"Vide"]
[null,"Q4",null,null,null,null,"Vide"]
[null,"Q5",null,null,null,null,"Vide"]
[null,"Q6",null,null,null,null,"Vide"]
["Environnement","E1",null,null,null,null,"Vide"]
[null,"E2",null,null,null,null,{"$f":"IF(D22<>\"\",$D$3,IF(E22<>\"\",$E$3,IF(F22<>\"\",$F$3,\"Vide\")))","v":"Vide"}]
[null,"E3",null,null,null,null,"Vide"]
[null,"E4",null,null,null,null,"Vide"]
[null,"E6",null,null,null,null,"Vide"]
[null,"E7",null,null,null,null,"Vide"]
["Divers","O1",null,null,null,null,"Vide"]
[null,"O2",null,null,null,null,"Vide"]
[null,"O3",null,null,null,null,"Vide"]
[null,null,null,null,null,null,"Vide"]
[null,null,null,null,null,null,"Vide"]
[null,null,null,null,null,null,"Vide"]
[null,null,null,null,null,null,"Vide"]
[null,null,null,null,null,null,"Vide"]
[null,null,null,null,null,null,"Vide"]
[null,null,null,null,null,null,"Vide"]
[null,null,null,null,null,null,"Vide"]
[null,null,null,null,null,null,"Vide"]
[]
["Comportements dangereux identifiés lors de l'audit :"]
[]
[]
["Commentaires supplémentaires :"]

{"sheet":"LABORATOIRE","index":5,"n_rows":43,"n_cols":8,"rows_kept":43,"cut":false,"hidden":false,"merged":[[40,0,40,7],[42,0,42,2],[43,0,43,7],[3,0,12,0],[13,0,18,0],[19,0,25,0],[0,0,0,3],[0,4,0,5],[1,0,1,3],[1,4,1,5],[39,0,39,2]]}
["LAYERED AUDIT\nSite de Dudelange",null,null,null,"Date :"]
["ZONE LABORATOIRE",null,null,null,"Auditeur : "]
[null,null,null,"OUI","NON","N.A","R","Commentaires / Actions / N° Work Order"]
["Sécurité","S1","Tempête ?",null,null,null,{"$f":"IF(D4<>\"\",$D$3,IF(E4<>\"\",$E$3,IF(F4<>\"\",$F$3,\"Vide\")))","v":"Vide"}]
[null,"S2","Fait-il beau ?",null,null,null,{"$f":"IF(D5<>\"\",$D$3,IF(E5<>\"\",$E$3,IF(F5<>\"\",$F$3,\"Vide\")))","v":"Vide"}]
[null,"S3","Pleut-il ?",null,null,null,"Vide"]
[null,"S4",null,null,null,null,"Vide"]
[null,"S5",null,null,null,null,"Vide"]
[null,"S6",null,null,null,null,"Vide"]
[null,"S7",null,null,null,null,"Vide"]
[null,"S8",null,null,null,null,"Vide"]
[null,"S9",null,null,null,null,"Vide"]
[null,"S10",null,null,null,null,"Vide"]
["Qualité","Q1",null,null,null,null,"Vide"]
[null,"Q2",null,null,null,null,"Vide"]
[null,"Q3",null,null,null,null,"Vide"]
[null,"Q4",null,null,null,null,"Vide"]
[null,"Q5",null,null,null,null,"Vide"]
[null,"Q6",null,null,null,null,"Vide"]
["Environnement","E1",null,null,null,null,"Vide"]
[null,"E2",null,null,null,null,"Vide"]
[null,"E3",null,null,null,null,{"$f":"IF(D22<>\"\",$D$3,IF(E22<>\"\",$E$3,IF(F22<>\"\",$F$3,\"Vide\")))","v":"Vide"}]
[null,"E4",null,null,null,null,"Vide"]
[null,"E5",null,null,null,null,"Vide"]
[null,"E6",null,null,null,null,"Vide"]
[null,"E7",null,null,null,null,"Vide"]
[null,null,null,null,null,null,"Vide"]
[null,null,null,null,null,null,"Vide"]
[null,null,null,null,null,null,"Vide"]
[null,null,null,null,null,null,"Vide"]
[null,null,null,null,null,null,"Vide"]
[null,null,null,null,null,null,"Vide"]
[null,null,null,null,null,null,"Vide"]
[null,null,null,null,null,null,"Vide"]
[null,null,null,null,null,null,"Vide"]
[null,null,null,null,null,null,"Vide"]
[null,null,null,null,null,null,"Vide"]
[null,null,null,null,null,null,"Vide"]
[]
["Comportements dangereux identifiés lors de l'audit :"]
["                                                                      "]
[]
["Commentaires supplémentaires :"]

{"sheet":"ENVIRONNEMENT","index":6,"n_rows":43,"n_cols":8,"rows_kept":43,"cut":false,"hidden":false,"merged":[[0,0,0,3],[0,4,0,5],[1,0,1,3],[1,4,1,5],[43,0,43,7],[3,0,6,0],[7,0,9,0],[10,0,13,0],[14,0,15,0],[16,0,19,0],[20,0,21,0],[22,0,25,0],[39,0,39,2],[40,0,40,7],[42,0,42,2],[2,0,2,2]]}
["LAYERED AUDIT\nSite de Dudelange",null,null,null,"Date :"]
["ZONE ENVIRONNEMENT",null,null,null,"Auditeur : "]
[null,null,null,"OUI","NON","N.A","R","Commentaires / Actions / N° Work Order"]
["Sécurité","S1",null,null,null,null,{"$f":"IF(D4<>\"\",$D$3,IF(E4<>\"\",$E$3,IF(F4<>\"\",$F$3,\"Vide\")))","v":"Vide"}]
[null,"S2",null,null,null,null,{"$f":"IF(D5<>\"\",$D$3,IF(E5<>\"\",$E$3,IF(F5<>\"\",$F$3,\"Vide\")))","v":"Vide"}]
[null,"S4",null,null,null,null,"Vide"]
[null,"S10",null,null,null,null,"Vide"]
["Qualité","Q1",null,null,null,null,"Vide"]
[null,"Q2",null,null,null,null,"Vide"]
[null,"Q6",null,null,null,null,"Vide"]
["Environnement","E1",null,null,null,null,"Vide"]
[null,"E3",null,null,null,null,"Vide"]
[null,"E6",null,null,null,null,"Vide"]
[null,"E7",null,null,null,null,"Vide"]
["Qualité","Q1",null,null,null,null,"Vide"]
[null,"Q6",null,null,null,null,"Vide"]
["Environnement","E1",null,null,null,null,"Vide"]
[null,"E3",null,null,null,null,"Vide"]
[null,"E6",null,null,null,null,"Vide"]
[null,"E7",null,null,null,null,"Vide"]
["Qualité","Q1",null,null,null,null,"Vide"]
[null,"Q6",null,null,null,null,{"$f":"IF(D22<>\"\",$D$3,IF(E22<>\"\",$E$3,IF(F22<>\"\",$F$3,\"Vide\")))","v":"Vide"}]
["Environnement","E1",null,null,null,null,"Vide"]
[null,"E3",null,null,null,null,"Vide"]
[null,"E6",null,null,null,null,"Vide"]
[null,"E7",null,null,null,null,"Vide"]
[null,null,null,null,null,null,"Vide"]
[null,null,null,null,null,null,"Vide"]
[null,null,null,null,null,null,"Vide"]
[null,null,null,null,null,null,"Vide"]
[null,null,null,null,null,null,"Vide"]
[null,null,null,null,null,null,"Vide"]
[null,null,null,null,null,null,"Vide"]
[null,null,null,null,null,null,"Vide"]
[null,null,null,null,null,null,"Vide"]
[null,null,null,null,null,null,"Vide"]
[null,null,null,null,null,null,"Vide"]
[null,null,null,null,null,null,"Vide"]
[]
["Comportements dangereux identifiés lors de l'audit :"]
["                                                                      "]
[]
["Commentaires supplémentaires :"]

{"sheet":"MAINTENANCE","index":7,"n_rows":38,"n_cols":8,"rows_kept":38,"cut":false,"hidden":false,"merged":[[28,0,28,7],[30,0,30,2],[14,0,15,0],[24,0,25,0],[31,0,31,7],[27,0,27,2],[0,0,0,3],[0,4,0,5],[1,0,1,3],[1,4,1,5],[2,0,2,2],[10,0,13,0],[16,0,19,0],[20,0,23,0],[3,0,4,0],[5,0,6,0],[7,0,9,0]]}
["LAYERED AUDIT\nSite de Dudelange",null,null,null,"Date :"]
["ZONE MAINTENANCE",null,null,null,"Auditeur : "]
[null,null,null,"OUI","NON","N.A","R","Commentaires / Actions / N° Work Order"]
["Sécurité","S1",null,null,null,null,{"$f":"IF(D4<>\"\",$D$3,IF(E4<>\"\",$E$3,IF(F4<>\"\",$F$3,\"Vide\")))","v":"Vide"}]
[null,"S2",null,null,null,null,{"$f":"IF(D5<>\"\",$D$3,IF(E5<>\"\",$E$3,IF(F5<>\"\",$F$3,\"Vide\")))","v":"Vide"}]
["Qualité","Q1",null,null,null,null,"Vide"]
[null,"Q2",null,null,null,null,"Vide"]
["Environnement","E1",null,null,null,null,"Vide"]
[null,"E2",null,null,null,null,"Vide"]
[null,"E3",null,null,null,null,"Vide"]
["Sécurité","S3",null,null,null,null,"Vide"]
[null,"S5",null,null,null,null,"Vide"]
[null,"S6",null,null,null,null,"Vide"]
[null,"S7",null,null,null,null,"Vide"]
["Qualité","Q3",null,null,null,null,"Vide"]
[null,"Q4",null,null,null,null,"Vide"]
["Environnement","E4",null,null,null,null,"Vide"]
[null,"E5",null,null,null,null,"Vide"]
[null,"E6",null,null,null,null,"Vide"]
[null,"E7",null,null,null,null,"Vide"]
["Sécurité","S1",null,null,null,null,"Vide"]
[null,"S2",null,null,null,null,{"$f":"IF(D22<>\"\",$D$3,IF(E22<>\"\",$E$3,IF(F22<>\"\",$F$3,\"Vide\")))","v":"Vide"}]
[null,"S3",null,null,null,null,"Vide"]
[null,"S10",null,null,null,null,"Vide"]
["Qualité","Q1",null,null,null,null,"Vide"]
[null,"Q2",null,null,null,null,"Vide"]
[null,null,null,null,null,null,"Vide"]
["Comportements dangereux identifiés lors de l'audit :",null,null,null,null,null,"Vide"]
["                                                                      "]
[null,null,null,null,null,null,"Vide"]
["Commentaires supplémentaires :",null,null,null,null,null,"Vide"]
[]
[null,null,null,null,null,null,"Vide"]
[null,null,null,null,null,null,"Vide"]
[null,null,null,null,null,null,"Vide"]
[null,null,null,null,null,null,"Vide"]
[null,null,null,null,null,null,"Vide"]
[null,null,null,null,null,null,"Vide"]

{"sheet":"CHARGEMENT","index":8,"n_rows":43,"n_cols":8,"rows_kept":43,"cut":false,"hidden":false,"merged":[[40,0,40,7],[42,0,42,2],[43,0,43,7],[3,0,10,0],[11,0,16,0],[17,0,20,0],[0,0,0,3],[0,4,0,5],[1,0,1,3],[1,4,1,5],[39,0,39,2]]}
["LAYERED AUDIT\nSite de Dudelange",null,null,null,"Date :"]
["ZONE CHARGEMENT",null,null,null,"Auditeur : "]
[null,null,null,"OUI","NON","N.A","R","Commentaires / Actions / N° Work Order"]
["Sécurité","S1",null,null,null,null,{"$f":"IF(D4<>\"\",$D$3,IF(E4<>\"\",$E$3,IF(F4<>\"\",$F$3,\"Vide\")))","v":"Vide"}]
[null,"S2",null,null,null,null,{"$f":"IF(D5<>\"\",$D$3,IF(E5<>\"\",$E$3,IF(F5<>\"\",$F$3,\"Vide\")))","v":"Vide"}]
[null,"S3",null,null,null,null,"Vide"]
[null,"S4",null,null,null,null,"Vide"]
[null,"S5",null,null,null,null,"Vide"]
[null,"S6",null,null,null,null,"Vide"]
[null,"S7",null,null,null,null,"Vide"]
[null,"S8",null,null,null,null,"Vide"]
["Qualité","Q1",null,null,null,null,"Vide"]
[null,"Q2",null,null,null,null,"Vide"]
[null,"Q3",null,null,null,null,"Vide"]
[null,"Q4",null,null,null,null,"Vide"]
[null,"Q5",null,null,null,null,"Vide"]
[null,"Q6",null,null,null,null,"Vide"]
["Environnement","E1",null,null,null,null,"Vide"]
[null,"E2",null,null,null,null,"Vide"]
[null,"E3",null,null,null,null,"Vide"]
[null,"E4",null,null,null,null,"Vide"]
[null,null,null,null,null,null,{"$f":"IF(D22<>\"\",$D$3,IF(E22<>\"\",$E$3,IF(F22<>\"\",$F$3,\"Vide\")))","v":"Vide"}]
[null,null,null,null,null,null,"Vide"]
[null,null,null,null,null,null,"Vide"]
[null,null,null,null,null,null,"Vide"]
[null,null,null,null,null,null,"Vide"]
[null,null,null,null,null,null,"Vide"]
[null,null,null,null,null,null,"Vide"]
[]
[null,null,null,null,null,null,"Vide"]
[null,null,null,null,null,null,"Vide"]
[]
[null,null,null,null,null,null,"Vide"]
[null,null,null,null,null,null,"Vide"]
[null,null,null,null,null,null,"Vide"]
[null,null,null,null,null,null,"Vide"]
[null,null,null,null,null,null,"Vide"]
[null,null,null,null,null,null,"Vide"]
[]
["Comportements dangereux identifiés lors de l'audit :"]
["                                                                      "]
[]
["Commentaires supplémentaires :"]

{"sheet":"TREMIS-DOSEURS-TAMIS","index":9,"n_rows":38,"n_cols":7,"rows_kept":38,"cut":false,"hidden":false,"merged":[[39,0,39,2],[40,0,40,7],[42,0,42,2],[43,0,43,7],[17,0,20,0],[11,0,16,0],[0,0,0,3],[0,4,0,5],[1,0,1,3],[1,4,1,5],[3,0,10,0]]}
["LAYERED AUDIT\nSite de Dudelange",null,null,null,"Date :"]
["ZONE TREMIS-DOSEURS-TAMIS",null,null,null,"Auditeur : "]
[null,null,null,null,null,null,"R"]
[null,null,null,null,null,null,{"$f":"IF(D4<>\"\",$D$3,IF(E4<>\"\",$E$3,IF(F4<>\"\",$F$3,\"Vide\")))","v":"Vide"}]
[null,null,null,null,null,null,{"$f":"IF(D5<>\"\",$D$3,IF(E5<>\"\",$E$3,IF(F5<>\"\",$F$3,\"Vide\")))","v":"Vide"}]
[null,null,null,null,null,null,"Vide"]
[null,null,null,null,null,null,"Vide"]
[null,null,null,null,null,null,"Vide"]
[null,null,null,null,null,null,"Vide"]
[null,null,null,null,null,null,"Vide"]
[null,null,null,null,null,null,"Vide"]
[null,null,null,null,null,null,"Vide"]
[null,null,null,null,null,null,"Vide"]
[null,null,null,null,null,null,"Vide"]
[null,null,null,null,null,null,"Vide"]
[null,null,null,null,null,null,"Vide"]
[null,null,null,null,null,null,"Vide"]
[null,null,null,null,null,null,"Vide"]
[null,null,null,null,null,null,"Vide"]
[null,null,null,null,null,null,"Vide"]
[null,null,null,null,null,null,"Vide"]
[null,null,null,null,null,null,{"$f":"IF(D22<>\"\",$D$3,IF(E22<>\"\",$E$3,IF(F22<>\"\",$F$3,\"Vide\")))","v":"Vide"}]
[null,null,null,null,null,null,"Vide"]
[null,null,null,null,null,null,"Vide"]
[null,null,null,null,null,null,"Vide"]
[null,null,null,null,null,null,"Vide"]
[null,null,null,null,null,null,"Vide"]
[null,null,null,null,null,null,"Vide"]
[]
[null,null,null,null,null,null,"Vide"]
[null,null,null,null,null,null,"Vide"]
[]
[null,null,null,null,null,null,"Vide"]
[null,null,null,null,null,null,"Vide"]
[null,null,null,null,null,null,"Vide"]
[null,null,null,null,null,null,"Vide"]
[null,null,null,null,null,null,"Vide"]
[null,null,null,null,null,null,"Vide"]

{"sheet":"MIXER-EXTRUDEUSE-ENSACHEUSE","index":10,"n_rows":38,"n_cols":7,"rows_kept":38,"cut":false,"hidden":false,"merged":[[39,0,39,2],[40,0,40,7],[42,0,42,2],[43,0,43,7],[17,0,20,0],[11,0,16,0],[0,0,0,3],[0,4,0,5],[1,0,1,3],[1,4,1,5],[3,0,10,0]]}
["LAYERED AUDIT\nSite de Dudelange",null,null,null,"Date :"]
["ZONE MIXER-EXTRUDEUSE-ENSACHEUSE",null,null,null,"Auditeur : "]
[null,null,null,null,null,null,"R"]
[null,null,null,null,null,null,{"$f":"IF(D4<>\"\",$D$3,IF(E4<>\"\",$E$3,IF(F4<>\"\",$F$3,\"Vide\")))","v":"Vide"}]
[null,null,null,null,null,null,{"$f":"IF(D5<>\"\",$D$3,IF(E5<>\"\",$E$3,IF(F5<>\"\",$F$3,\"Vide\")))","v":"Vide"}]
[null,null,null,null,null,null,"Vide"]
[null,null,null,null,null,null,"Vide"]
[null,null,null,null,null,null,"Vide"]
[null,null,null,null,null,null,"Vide"]
[null,null,null,null,null,null,"Vide"]
[null,null,null,null,null,null,"Vide"]
[null,null,null,null,null,null,"Vide"]
[null,null,null,null,null,null,"Vide"]
[null,null,null,null,null,null,"Vide"]
[null,null,null,null,null,null,"Vide"]
[null,null,null,null,null,null,"Vide"]
[null,null,null,null,null,null,"Vide"]
[null,null,null,null,null,null,"Vide"]
[null,null,null,null,null,null,"Vide"]
[null,null,null,null,null,null,"Vide"]
[null,null,null,null,null,null,"Vide"]
[null,null,null,null,null,null,{"$f":"IF(D22<>\"\",$D$3,IF(E22<>\"\",$E$3,IF(F22<>\"\",$F$3,\"Vide\")))","v":"Vide"}]
[null,null,null,null,null,null,"Vide"]
[null,null,null,null,null,null,"Vide"]
[null,null,null,null,null,null,"Vide"]
[null,null,null,null,null,null,"Vide"]
[null,null,null,null,null,null,"Vide"]
[null,null,null,null,null,null,"Vide"]
[]
[null,null,null,null,null,null,"Vide"]
[null,null,null,null,null,null,"Vide"]
[]
[null,null,null,null,null,null,"Vide"]
[null,null,null,null,null,null,"Vide"]
[null,null,null,null,null,null,"Vide"]
[null,null,null,null,null,null,"Vide"]
[null,null,null,null,null,null,"Vide"]
[null,null,null,null,null,null,"Vide"]